fUST/lending_fUST_20240131
["ID","MTS","AMOUNT","RATE_DAILY","PERIOD"]
[313054524,1706695841080,-500.0,0.00022191,2]
[313054525,1706695841089,-489.10048454,0.00022191,2]
[313054526,1706695841097,-500.0,0.00022191,2]
[313054527,1706695841106,-504.04931601,0.00022191,2]
[313054528,1706695841117,-2006.17,0.00022191,2]
[313054530,1706695841126,-500.0,0.00022191,2]
[313054531,1706695841135,-500.0,0.00022191,2]
[313054533,1706695841144,-500.0,0.00022191,2]
[313054535,1706695841153,-500.0,0.00022191,2]
[313054537,1706695841163,-500.0,0.00022191,2]
[313054539,1706695841172,-500.0,0.00022191,2]
[313054541,1706695841181,-642.3454458,0.00022191,2]
[313054543,1706695841192,-500.0,0.00022191,2]
[313054545,1706695841202,-2497.83,0.00022191,2]
[313054547,1706695841211,-500.0,0.00022191,2]
[313054549,1706695841220,-435.63803697,0.00022191,2]
[313054551,1706695841229,-500.0,0.00022191,2]
[313054553,1706695841239,-500.0,0.00022191,2]
[313054555,1706695841248,-500.0,0.00022191,2]
[313054557,1706695841258,-500.0,0.00022191,2]
[313054559,1706695841268,-500.0,0.00022191,2]
[313054561,1706695841277,-866.56,0.00022191,2]
[313054563,1706695841286,-500.0,0.00022191,2]
[313054565,1706695841295,-500.0,0.00022191,2]
[313054567,1706695841304,-500.0,0.00022191,2]
[313054569,1706695841313,-500.0,0.00022191,2]
[313054571,1706695841322,-500.0,0.00022191,2]
[313054573,1706695841331,-938.63,0.00022191,2]
[313054575,1706695841341,-1695.73,0.00022191,2]
[313054577,1706695841350,-500.0,0.00022191,2]
[313054579,1706695841359,-500.0,0.00022191,2]
[313054581,1706695841368,-1032.3,0.00022191,2]
[313054583,1706695841377,-2876.55,0.00022191,2]
[313054585,1706695841386,-4040.2,0.00022191,2]
[313054586,1706695841397,-500.0,0.00022191,2]
[313054588,1706695841406,-500.0,0.00022191,2]
[313054589,1706695841415,-5327.54,0.00022191,2]
[313054590,1706695841424,-500.0,0.00022191,2]
[313054591,1706695841434,-469.98098775,0.00022191,2]
[313054592,1706695841445,-253.12630174,0.00022191,2]
[313054593,1706695841454,-505.74,0.00022191,2]
[313054594,1706695841462,-500.0,0.00022191,2]
[313054595,1706695841472,-500.0,0.00022191,2]
[313054596,1706695841481,-783.81,0.00022191,2]
[313054597,1706695841490,-500.0,0.00022191,2]
[313054599,1706695841500,-500.0,0.00022191,2]
[313054600,1706695841510,-500.0,0.00022191,2]
[313054602,1706695841520,-500.0,0.00022191,2]
[313054604,1706695841529,-500.0,0.00022191,2]
[313054606,1706695841539,-500.0,0.00022191,2]
[313054607,1706695841548,-28000.7,0.00022191,2]
[313054609,1706695841557,-774.63,0.00022191,2]
[313054611,1706695841566,-500.0,0.00022191,2]
[313054612,1706695841576,-6313.77,0.00022191,2]
[313054614,1706695841586,-500.0,0.00022191,2]
[313054622,1706695841670,-500.0,0.00022191,2]
[313054623,1706695841681,-500.0,0.00022191,2]
[313054625,1706695841693,-500.0,0.00022191,2]
[313054627,1706695841702,-500.0,0.00022191,2]
[313054629,1706695841712,-1248.31,0.00022191,2]
[313054631,1706695841721,-1064.33,0.00022191,2]
[313054632,1706695841731,-1469.84,0.00022191,2]
[313054634,1706695841741,-518.66224676,0.00022191,2]
[313054636,1706695841750,-500.0,0.00022191,2]
[313054638,1706695841760,-500.0,0.00022191,2]
[313054639,1706695841769,-500.0,0.00022191,2]
[313054641,1706695841778,-522.07,0.00022191,2]
[313054643,1706695841788,-2280.13,0.00022191,2]
[313054645,1706695841797,-1352.37,0.00022191,2]
[313054646,1706695841806,-500.0,0.00022191,2]
[313054647,1706695841815,-14780.08,0.00022191,2]
[313054648,1706695841825,-500.0,0.00022191,2]
[313054649,1706695841834,-2307.34,0.00022191,2]
[313054650,1706695841843,-500.0,0.00022191,2]
[313054651,1706695841852,-500.0,0.00022191,2]
[313054652,1706695841862,-1996.15,0.00022191,2]
[313054653,1706695841871,-219.10688335,0.00022191,2]
[313054654,1706695841879,-500.0,0.00022191,2]
[313054656,1706695841889,-277.16826861,0.00022191,2]
[313054658,1706695841898,-6182.84,0.00022191,2]
[313054660,1706695841909,-352.27375048,0.00022191,2]
[313054662,1706695841919,-5097.17,0.00022191,2]
[313054664,1706695841927,-500.0,0.00022191,2]
[313054666,1706695841938,-2441.32495196,0.00022191,2]
[313054668,1706695841955,-67.19504804,0.00022191,2]
[313054670,1706695841965,-2501.79836818,0.00022191,2]
[313054672,1706695841976,-3989.87163182,0.00022191,2]
[313054675,1706695841986,-5011.01,0.00022191,2]
[313054676,1706695841995,-500.0,0.00022191,2]
[313054678,1706695842005,-500.0,0.00022191,2]
[313054680,1706695842014,-46.01407138,0.00022191,2]
[313054706,1706695842252,-1137.08,0.00021906,3]
[313054708,1706695842265,-895.0,0.00021906,3]
[313054712,1706695842287,-251.39133245,0.00021906,3]
[313054761,1706695843719,-1036.24628758,0.00021906,3]
[313055223,1706695848207,-1709.12690794,0.00021905,2]
[313055225,1706695848217,-0.36237997,0.00021906,3]
[313055227,1706695848226,-2407.22,0.00021917,2]
[313055229,1706695848236,-500.0,0.00021917,2]
[313055231,1706695848245,-500.0,0.00021917,2]
[313055233,1706695848256,-506.75,0.00021917,2]
[313055236,1706695848265,-2542.33789123,0.00021917,2]
[313055238,1706695848277,-2341.23210877,0.00021917,2]
[313055240,1706695848286,-1928.76789123,0.00022191,2]
[313055243,1706695848297,-346.42397575,0.00022191,2]
[313055700,1706697037881,-260.71148909,0.00021857,2]
[313055701,1706697037891,-323.57048434,0.00021858,2]
[313055702,1706697037901,-611.41552988,0.00021859,2]
[313055790,1706697043030,-405.61819927,0.00021859,2]
[313055792,1706697043042,-2010.07700614,0.00021862,2]
[313055795,1706697043055,-310.02325175,0.00021879,2]
[313055797,1706697043066,-2642.71175425,0.00021907,3]
[313055799,1706697043079,-124.01824575,0.00021907,3]
[313055802,1706697043090,-2305.61,0.00021907,3]
[313055804,1706697043102,-2101.098095,0.00021915,2]
[313055845,1706697045976,-426.6,0.00021915,2]
[313055848,1706697045990,-9365.70084131,0.00021915,2]
[313055851,1706697046004,-1593.00454677,0.00021915,2]
[313055853,1706697046015,-3169.86442143,0.00021915,2]
[313055855,1706697046029,-1396.91291584,0.00021915,2]
[313055857,1706697046039,-1268.60769879,0.00021915,2]
[313055859,1706697046050,-494.9489016,0.00021915,2]
[313055862,1706697046062,-302.3601781,0.00021915,2]
[313055864,1706697046073,-262.71950685,0.00021915,2]
[313055866,1706697046084,-500.0,0.00021916,2]
[313055868,1706697046095,-300.0,0.00021916,2]
[313055870,1706697046108,-337.2807246,0.00021916,2]
[313055886,1706697046119,-500.0,0.00021916,2]
[313055889,1706697046262,-500.0,0.00021916,2]
[313055891,1706697046272,-500.0,0.00021916,2]
[313055893,1706697046281,-500.0,0.00021916,2]
[313055894,1706697046290,-450.62631018,0.00021916,2]
[313055896,1706697046300,-500.0,0.00021916,2]
[313055899,1706697046310,-400.10441139,0.00021916,2]
[313055901,1706697046319,-500.0,0.00021916,2]
[313055902,1706697046328,-500.0,0.00021916,2]
[313055904,1706697046337,-500.0,0.00021916,2]
[313055906,1706697046347,-500.0,0.00021916,2]
[313055909,1706697046356,-500.0,0.00021916,2]
[313055910,1706697046366,-500.0,0.00021916,2]
[313055913,1706697046375,-500.0,0.00021916,2]
[313055914,1706697046384,-500.0,0.00021916,2]
[313055916,1706697046394,-200.0,0.00021916,2]
[313055918,1706697046403,-500.0,0.00021916,2]
[313055920,1706697046412,-500.0,0.00021916,2]
[313055923,1706697046422,-500.0,0.00021916,2]
[313055924,1706697046432,-500.0,0.00021916,2]
[313055927,1706697046441,-500.0,0.00021917,2]
[313055928,1706697046451,-500.0,0.00021917,2]
[313055930,1706697046460,-500.0,0.00021917,2]
[313055932,1706697046469,-500.0,0.00021917,2]
[313055934,1706697046478,-500.0,0.00021917,2]
[313055936,1706697046487,-1000.0,0.00021917,2]
[313055938,1706697046497,-363.57038455,0.00021917,2]
[313055941,1706697046509,-136.42961545,0.00021917,2]
[313055943,1706697046519,-500.16315261,0.00021917,2]
[313055945,1706697046529,-111.43728622,0.00021917,2]
[313056162,1706698187234,160.55683341,0.00020427,2]
[313056203,1706698235049,-295.35270881,0.00020522,2]
[313056204,1706698235060,-260.71148909,0.00020523,2]
[313056206,1706698235070,-6796.36771145,0.00020524,2]
[313056208,1706698235079,-323.57048434,0.00020525,2]
[313056209,1706698235089,-1017.03372915,0.00020525,2]
[313056211,1706698235099,-8744.7051695,0.0002054,2]
[313056213,1706698235108,-184.0980345,0.00020651,2]
[313056214,1706698235121,-155.00703967,0.00021805,2]
[313056216,1706698235131,-166.07172986,0.00021817,2]
[313056218,1706698235141,-189.0197261,0.00021873,2]
[313056220,1706698235152,-3772.16,0.00021907,3]
[313056222,1706698235162,-3143.47,0.00021907,3]
[313056224,1706698235172,-273.8574331,0.00021915,2]
[313056226,1706698235182,-155.00775039,0.00021915,2]
[313056227,1706698235192,-155.03255684,0.00021915,2]
[313056228,1706698235202,-20925.73501298,0.00021915,2]
[313056229,1706698235213,-302.3601781,0.00021915,2]
[313056230,1706698235222,-556.20773545,0.00021915,2]
[313056231,1706698235232,-7971.79381667,0.00021916,2]
[313056232,1706698235241,-429.75278267,0.00021917,2]
[313056233,1706698235251,-503.33303702,0.00021917,2]
[313056234,1706698235260,-500.0,0.00021917,2]
[313056235,1706698235270,-500.0,0.00021917,2]
[313056236,1706698235382,-1828.98396681,0.00021917,2]
[313056237,1706698235392,-500.0,0.00021917,2]
[313056238,1706698235402,-1000.0,0.00021917,2]
[313056239,1706698235412,-500.0,0.00021917,2]
[313056240,1706698235423,-938.63,0.00021917,2]
[313056241,1706698235436,-500.0,0.00021917,2]
[313056242,1706698235445,-610.81401891,0.00021917,2]
[313056243,1706698235455,-347.85204275,0.00021917,2]
[313056244,1706698235465,-500.0,0.00021917,2]
[313056245,1706698235476,-500.0,0.00021917,2]
[313056246,1706698235486,-401.89506063,0.00021917,2]
[313056247,1706698235496,-500.0,0.00021917,2]
[313056248,1706698235506,-500.0,0.00021917,2]
[313056249,1706698235517,-500.0,0.00021917,2]
[313056250,1706698235527,-500.0,0.00021917,2]
[313056251,1706698235537,-501.01811761,0.00021917,2]
[313056252,1706698235547,-500.0,0.00021917,2]
[313056253,1706698235557,-1408.59,0.00021917,2]
[313056254,1706698235566,-500.0,0.00021917,2]
[313056255,1706698235577,-500.0,0.00021917,2]
[313056256,1706698235586,-500.0,0.00021917,2]
[313056257,1706698235596,-511.86998028,0.00021917,2]
[313056258,1706698235606,-500.0,0.00021917,2]
[313056259,1706698235616,-518.82678093,0.00021917,2]
[313056260,1706698235629,-307.69575709,0.00021917,2]
[313056261,1706698235639,-554.28759638,0.00021917,2]
[313056262,1706698235649,-941.82,0.00021917,2]
[313056263,1706698235658,-500.0,0.00021917,2]
[313056264,1706698235668,-500.0,0.00021917,2]
[313056265,1706698235677,-699.73,0.00021917,2]
[313056266,1706698235687,-500.0,0.00021917,2]
[313056267,1706698235698,-500.0,0.00021917,2]
[313056268,1706698235709,-187.69311989,0.00021917,2]
[313056269,1706698235719,-479.01556999,0.00021917,2]
[313056270,1706698235728,-500.0,0.00021917,2]
[313056271,1706698235738,-500.0,0.00021917,2]
[313056272,1706698235747,-500.0,0.00021917,2]
[313056273,1706698235757,-500.0,0.00021917,2]
[313056274,1706698235767,-316.92065111,0.00021917,2]
[313056275,1706698235776,-500.0,0.00021917,2]
[313056276,1706698235786,-500.0,0.00021917,2]
[313056277,1706698235796,-500.0,0.00021917,2]
[313056278,1706698235805,-510.80103802,0.00021917,2]
[313056279,1706698235815,-500.0,0.00021917,2]
[313056280,1706698235825,-500.0,0.00021917,2]
[313056281,1706698235834,-500.0,0.00021917,2]
[313056282,1706698235844,-500.0,0.00021917,2]
[313056283,1706698235853,-1212.33,0.00021917,2]
[313056284,1706698235862,-6.34692509,0.00021917,2]
[313056285,1706698235878,-311.01750499,0.00021917,2]
[313056286,1706698235888,-500.0,0.00021917,2]
[313056287,1706698235898,-1209.46,0.00021917,2]
[313056288,1706698235907,-500.0,0.00021917,2]
[313056289,1706698235917,-500.0,0.00021917,2]
[313056290,1706698235926,-500.0,0.00021917,2]
[313056291,1706698235936,-500.0,0.00021917,2]
[313056292,1706698235946,-500.0,0.00021917,2]
[313056293,1706698235955,-500.0,0.00021917,2]
[313056294,1706698235964,-500.0,0.00021917,2]
[313056295,1706698235974,-500.0,0.00021917,2]
[313056296,1706698235983,-500.0,0.00021917,2]
[313056297,1706698235992,-500.0,0.00021917,2]
[313056298,1706698236002,-500.0,0.00021917,2]
[313056299,1706698236011,-500.0,0.00021917,2]
[313056300,1706698236020,-500.0,0.00021917,2]
[313056301,1706698236030,-500.0,0.00021917,2]
[313056302,1706698236039,-500.0,0.00021917,2]
[313056303,1706698236049,-500.0,0.00021917,2]
[313056304,1706698236058,-2154.64,0.00021917,2]
[313056305,1706698236067,-613.82,0.00021917,2]
[313056306,1706698236076,-500.0,0.00021917,2]
[313056307,1706698236086,-500.0,0.00021917,2]
[313056308,1706698236096,-500.0,0.00021917,2]
[313056309,1706698236106,-500.0,0.00021917,2]
[313056310,1706698236115,-500.0,0.00021917,2]
[313056311,1706698236129,-4754.0,0.00021917,2]
[313056312,1706698236139,-500.0,0.00021917,2]
[313056313,1706698236149,-500.0,0.00021917,2]
[313056314,1706698236158,-500.0,0.00021917,2]
[313056315,1706698236169,-500.0,0.00021917,2]
[313056316,1706698236179,-500.0,0.00021917,2]
[313056317,1706698236188,-500.0,0.00021917,2]
[313056318,1706698236198,-1145.59,0.00021917,2]
[313056319,1706698236207,-500.0,0.00021917,2]
[313056320,1706698236216,-578.07,0.00021917,2]
[313056321,1706698236226,-1691.76,0.00021917,2]
[313056322,1706698236235,-500.0,0.00021917,2]
[313056323,1706698236244,-500.0,0.00021917,2]
[313056324,1706698236254,-538.63298042,0.00021917,2]
[313056325,1706698236264,-500.0,0.00021917,2]
[313056326,1706698236273,-510.73879204,0.00021917,2]
[313056327,1706698236283,-500.0,0.00021917,2]
[313056328,1706698236292,-500.0,0.00021917,2]
[313056329,1706698236302,-514.47606943,0.00021917,2]
[313056330,1706698236311,-500.0,0.00021917,2]
[313056331,1706698236320,-200.38694254,0.00021917,2]
[313056348,1706698238051,-155.0,0.00020522,2]
[313056350,1706698238060,-155.0,0.00020522,2]
[313056352,1706698238069,-299.61305746,0.00021917,2]
[313056354,1706698238079,-467.36530748,0.00021917,2]
[313056356,1706698238088,-500.0,0.00021917,2]
[313056358,1706698238097,-500.0,0.00021917,2]
[313056360,1706698238107,-500.0,0.00021917,2]
[313056362,1706698238116,-500.0,0.00021917,2]
[313056364,1706698238127,-500.0,0.00021917,2]
[313056366,1706698238136,-500.0,0.00021917,2]
[313056368,1706698238146,-500.0,0.00021917,2]
[313056369,1706698238155,-500.0,0.00021917,2]
[313056370,1706698238164,-403.95937981,0.00021917,2]
[313056371,1706698238172,-500.0,0.00021917,2]
[313056372,1706698238181,-500.0,0.00021917,2]
[313056373,1706698238190,-500.0,0.00021917,2]
[313056374,1706698238199,-500.0,0.00021917,2]
[313056376,1706698238208,-500.0,0.00021917,2]
[313056378,1706698238217,-500.0,0.00021917,2]
[313056380,1706698238226,-500.0,0.00021917,2]
[313056382,1706698238235,-500.0,0.00021917,2]
[313056384,1706698238244,-500.0,0.00021917,2]
[313056386,1706698238253,-500.0,0.00021917,2]
[313056388,1706698238262,-894.13,0.00021917,2]
[313056390,1706698238271,-500.0,0.00021917,2]
[313056392,1706698238280,-500.0,0.00021917,2]
[313056394,1706698238289,-500.0,0.00021917,2]
[313056396,1706698238298,-2497.83,0.00021917,2]
[313056398,1706698238306,-500.0,0.00021917,2]
[313056400,1706698238315,-500.0,0.00021917,2]
[313056402,1706698238325,-568.35400767,0.00021917,2]
[313056404,1706698238334,-500.0,0.00021917,2]
[313056406,1706698238343,-500.0,0.00021917,2]
[313056407,1706698238352,-500.0,0.00021917,2]
[313056408,1706698238361,-224.73913167,0.00021917,2]
[313056410,1706698238370,-500.0,0.00021917,2]
[313056411,1706698238381,-500.0,0.00021917,2]
[313056413,1706698238390,-500.0,0.00021917,2]
[313056415,1706698238398,-500.0,0.00021917,2]
[313056416,1706698238407,-238.65381397,0.00021917,2]
[313056417,1706698238416,-500.0,0.00021917,2]
[313056418,1706698238429,-500.0,0.00021917,2]
[313056419,1706698238439,-3079.11,0.00021917,2]
[313056420,1706698238449,-500.0,0.00021917,2]
[313056421,1706698238458,-866.56,0.00021917,2]
[313056422,1706698238467,-500.0,0.00021917,2]
[313056423,1706698238476,-548.96,0.00021917,2]
[313056424,1706698238486,-500.0,0.00021917,2]
[313056425,1706698238495,-500.0,0.00021917,2]
[313056426,1706698238505,-500.0,0.00021917,2]
[313056427,1706698238514,-325.83874545,0.00021917,2]
[313056428,1706698238524,-500.0,0.00021917,2]
[313056429,1706698238533,-5124.05,0.00021917,2]
[313056430,1706698238543,-500.0,0.00021917,2]
[313056431,1706698238552,-553.73391012,0.00021917,2]
[313056432,1706698238561,-525.82967829,0.00021917,2]
[313056433,1706698238571,-2858.58,0.00021917,2]
[313056434,1706698238580,-500.0,0.00021917,2]
[313056435,1706698238590,-500.0,0.00021917,2]
[313056436,1706698238600,-190.90635508,0.00021917,2]
[313056437,1706698238609,-2876.55,0.00021917,2]
[313056438,1706698238618,-500.0,0.00021917,2]
[313056439,1706698238629,-1695.73,0.00021917,2]
[313056440,1706698238638,-500.0,0.00021917,2]
[313056441,1706698238648,-2306.92,0.00021917,2]
[313056442,1706698238657,-1032.3,0.00021917,2]
[313056443,1706698238667,-779.04,0.00021917,2]
[313056444,1706698238676,-500.0,0.00021917,2]
[313056445,1706698238685,-505.74,0.00021917,2]
[313056446,1706698238695,-174.3742027,0.00021917,2]
[313056447,1706698238704,-500.0,0.00021917,2]
[313056448,1706698238713,-500.0,0.00021917,2]
[313056449,1706698238722,-4040.2,0.00021917,2]
[313056450,1706698238731,-500.0,0.00021917,2]
[313056451,1706698238740,-500.0,0.00021917,2]
[313056452,1706698238750,-500.0,0.00021917,2]
[313056453,1706698238759,-500.0,0.00021917,2]
[313056454,1706698238768,-3008.95,0.00021917,2]
[313056455,1706698238777,-500.0,0.00021917,2]
[313056456,1706698238786,-500.0,0.00021917,2]
[313056457,1706698238795,-774.63,0.00021917,2]
[313056458,1706698238804,-609.4752151,0.00021917,2]
[313056459,1706698238894,-7592.19217781,0.00021917,2]
[313056460,1706698238903,-500.0,0.00021917,2]
[313056461,1706698238912,-500.0,0.00021917,2]
[313056462,1706698238922,-6313.77,0.00021917,2]
[313056463,1706698238931,-500.0,0.00021917,2]
[313056464,1706698238940,-783.81,0.00021917,2]
[313056465,1706698238950,-508.76429048,0.00021917,2]
[313056466,1706698238959,-500.0,0.00021917,2]
[313056467,1706698238969,-500.0,0.00021917,2]
[313056468,1706698238978,-500.0,0.00021917,2]
[313056469,1706698238987,-500.0,0.00021917,2]
[313056470,1706698238996,-520.21219445,0.00021917,2]
[313056471,1706698239006,-500.0,0.00021917,2]
[313056472,1706698239015,-500.0,0.00021917,2]
[313056473,1706698239024,-500.0,0.00021917,2]
[313056474,1706698239033,-28000.7,0.00021917,2]
[313056475,1706698239042,-510.41281854,0.00021917,2]
[313056476,1706698239051,-500.0,0.00021917,2]
[313056477,1706698239060,-500.0,0.00021917,2]
[313056478,1706698239070,-500.0,0.00021917,2]
[313056479,1706698239078,-577.72132354,0.00021917,2]
[313056480,1706698239087,-500.0,0.00021917,2]
[313056481,1706698239097,-500.0,0.00021917,2]
[313056482,1706698239106,-12666.66,0.00021917,2]
[313056483,1706698239115,-14780.08,0.00021917,2]
[313056484,1706698239126,-500.0,0.00021917,2]
[313056485,1706698239135,-1352.37,0.00021917,2]
[313056486,1706698239145,-1064.33,0.00021917,2]
[313056487,1706698239155,-1201.9,0.00021917,2]
[313056488,1706698239165,-1248.31,0.00021917,2]
[313056489,1706698239174,-500.0,0.00021917,2]
[313056490,1706698239184,-226.34165706,0.00021917,2]
[313056491,1706698239193,-500.0,0.00021917,2]
[313056492,1706698239203,-522.07,0.00021917,2]
[313056493,1706698239213,-500.0,0.00021917,2]
[313056494,1706698239222,-2307.34,0.00021917,2]
[313056495,1706698239232,-18796.58,0.00021917,2]
[313056496,1706698239241,-500.0,0.00021917,2]
[313056497,1706698239250,-500.0,0.00021917,2]
[313056498,1706698239259,-2280.13,0.00021917,2]
[313056499,1706698239268,-500.0,0.00021917,2]
[313056500,1706698239277,-500.0,0.00021917,2]
[313056501,1706698239286,-500.0,0.00021917,2]
[313056502,1706698239295,-500.0,0.00021917,2]
[313056503,1706698239304,-500.0,0.00021917,2]
[313056504,1706698239313,-1996.15,0.00021917,2]
[313056505,1706698239322,-500.0,0.00021917,2]
[313056506,1706698239332,-500.0,0.00021917,2]
[313056507,1706698239341,-500.0,0.00021917,2]
[313056508,1706698239350,-2006.17,0.00021917,2]
[313056509,1706698239359,-500.0,0.00021917,2]
[313056510,1706698239368,-500.0,0.00021917,2]
[313056511,1706698239379,-6182.84,0.00021917,2]
[313056512,1706698239389,-606.32,0.00021917,2]
[313056513,1706698239399,-500.0,0.00021917,2]
[313056514,1706698239407,-500.0,0.00021917,2]
[313056515,1706698239417,-5097.17,0.00021917,2]
[313056516,1706698239428,-500.0,0.00021917,2]
[313056517,1706698239437,-500.0,0.00021917,2]
[313056518,1706698239446,-6221.19,0.00021917,2]
[313056519,1706698239455,-4802.22,0.00021917,2]
[313056520,1706698239466,-2505.72,0.00021917,2]
[313056521,1706698239475,-500.0,0.00021917,2]
[313056522,1706698239484,-500.0,0.00021917,2]
[313056524,1706698239494,-3054.78,0.00021917,2]
[313056525,1706698239503,-500.0,0.00021917,2]
[313056526,1706698239513,-500.0,0.00021917,2]
[313056527,1706698239522,-2161.02,0.00021917,2]
[313056528,1706698239531,-500.0,0.00021917,2]
[313056529,1706698239540,-166.666666,0.00021918,2]
[313056530,1706698239550,-500.0,0.00021999,2]
[313056531,1706698239560,-151.0,0.00021999,2]
[313056532,1706698239569,-18000.85837245,0.00022,2]
[313056533,1706698239578,-2037.54507979,0.00022,2]
[313056534,1706698239588,-426.66199522,0.00022,2]
[313056535,1706698239597,-3975.13505251,0.00022,2]
[313056536,1706698239608,-155.00620025,0.00022,2]
[313056537,1706698239618,-231.358638,0.00022,2]
[313056538,1706698239631,-231.358638,0.00022,2]
[313056539,1706698239641,-6242.087161,0.00022,2]
[313056540,1706698239650,-6242.087161,0.00022,2]
[313056541,1706698239660,-151.0,0.00022,2]
[313056542,1706698239670,-151.0,0.00022,2]
[313056543,1706698239679,-197.78811071,0.00022,2]
[313056544,1706698239689,-50000.0,0.00022021,2]
[313056545,1706698239697,-151.0,0.00022021,2]
[313056546,1706698239707,-500.0,0.0002219,2]
[313056547,1706698239716,-500.0,0.0002219,2]
[313056548,1706698239725,-500.0,0.0002219,2]
[313056549,1706698239735,-500.0,0.0002219,2]
[313056550,1706698239744,-500.0,0.0002219,2]
[313056551,1706698239753,-500.0,0.0002219,2]
[313056552,1706698239763,-500.0,0.0002219,2]
[313056553,1706698239772,-300.0,0.00022191,2]
[313056554,1706698239782,-155.01085076,0.00022191,2]
[313056555,1706698239792,-2087.09739776,0.00022191,2]
[313056556,1706698239801,-500.0,0.00022191,2]
[313056557,1706698239811,-621.46488849,0.00022191,2]
[313056558,1706698239819,-435.63803697,0.00022191,2]
[313056559,1706698239829,-975.44009589,0.00022191,2]
[313056560,1706698239838,-500.0,0.00022191,2]
[313056561,1706698239848,-938.63,0.00022191,2]
[313056562,1706698239857,-500.0,0.00022191,2]
[313056563,1706698239866,-500.0,0.00022191,2]
[313056564,1706698239878,-469.98098775,0.00022191,2]
[313056565,1706698239887,-500.0,0.00022191,2]
[313056566,1706698239895,-500.0,0.00022191,2]
[313056567,1706698239904,-500.0,0.00022191,2]
[313056568,1706698239913,-500.0,0.00022191,2]
[313056569,1706698239922,-500.0,0.00022191,2]
[313056570,1706698239932,-1408.59,0.00022191,2]
[313056571,1706698239941,-500.0,0.00022191,2]
[313056572,1706698239951,-500.0,0.00022191,2]
[313056573,1706698239959,-500.0,0.00022191,2]
[313056574,1706698239968,-352.27375048,0.00022191,2]
[313056575,1706698239978,-941.82,0.00022191,2]
[313056576,1706698239987,-500.0,0.00022191,2]
[313056577,1706698239997,-500.0,0.00022191,2]
[313056578,1706698240007,-699.73,0.00022191,2]
[313056579,1706698240017,-500.0,0.00022191,2]
[313056580,1706698240027,-500.0,0.00022191,2]
[313056581,1706698240036,-500.0,0.00022191,2]
[313056582,1706698240046,-500.0,0.00022191,2]
[313056583,1706698240056,-500.0,0.00022191,2]
[313056584,1706698240066,-500.0,0.00022191,2]
[313056585,1706698240077,-500.0,0.00022191,2]
[313056586,1706698240087,-500.0,0.00022191,2]
[313056587,1706698240098,-151.0,0.00022191,2]
[313056588,1706698240108,-151.0,0.00022191,2]
[313056589,1706698240119,-151.0,0.00022191,2]
[313056590,1706698240133,-151.0,0.00022191,2]
[313056592,1706698240142,-151.0,0.00022191,2]
[313056594,1706698240152,-500.0,0.00022191,2]
[313056596,1706698240161,-500.0,0.00022191,2]
[313056598,1706698240171,-500.0,0.00022191,2]
[313056600,1706698240181,-500.0,0.00022191,2]
[313056602,1706698240190,-1212.33,0.00022191,2]
[313056603,1706698240200,-500.0,0.00022191,2]
[313056605,1706698240209,-1209.46,0.00022191,2]
[313056607,1706698240219,-500.0,0.00022191,2]
[313056610,1706698240229,-500.0,0.00022191,2]